bitfinex/quotes_BTCUSD_20220303
["timestamp","ask_amount","ask_price","bid_price","bid_amount"]
[1646272319438,0.15759633,43803.0,43802.0,0.01111268]
[1646272320888,0.1219,43806.0,43802.0,0.01111268]
[1646272321290,0.00018611,43805.0,43802.0,0.01111268]
[1646272322089,0.1219,43806.0,43802.0,0.01111268]
[1646272322290,0.12208611,43806.0,43802.0,0.01111268]
[1646272322889,0.28001094,43806.0,43802.0,0.01111268]
[1646272323198,0.27982483,43806.0,43802.0,0.01111268]
[1646272323592,0.28001094,43806.0,43802.0,0.01111268]
[1646272324434,0.27982483,43806.0,43802.0,0.01111268]
[1646272324635,0.28282483,43806.0,43802.0,0.01111268]
[1646272324835,0.28301094,43806.0,43802.0,0.01111268]
[1646272325639,0.28282483,43806.0,43802.0,0.01111268]
[1646272325845,0.28301094,43806.0,43802.0,0.01111268]
[1646272326037,0.28301094,43806.0,43802.0,0.01102322]
[1646272326937,0.28282483,43806.0,43802.0,0.01102322]
[1646272327136,0.28301094,43806.0,43802.0,0.01102322]
[1646272328197,0.28282483,43806.0,43802.0,0.01102322]
[1646272328398,0.28301094,43806.0,43802.0,0.01102322]
[1646272329190,0.28282483,43806.0,43802.0,0.01102322]
[1646272329590,0.28301094,43806.0,43802.0,0.01102322]
[1646272330393,0.28282483,43806.0,43802.0,0.01102322]
[1646272330691,0.28301094,43806.0,43802.0,0.01102322]
[1646272331592,0.28282483,43806.0,43802.0,0.01102322]
[1646272332038,0.28301094,43806.0,43802.0,0.01102322]
[1646272332839,0.28282483,43806.0,43802.0,0.01102322]
[1646272333238,0.28301094,43806.0,43802.0,0.01102322]
[1646272333444,0.12508611,43806.0,43802.0,0.01102322]
[1646272334039,0.1249,43806.0,43802.0,0.01102322]
[1646272334440,0.12508611,43806.0,43802.0,0.01102322]
[1646272335242,0.1249,43806.0,43802.0,0.01102322]
[1646272335539,0.20666658,43805.0,43802.0,0.01102322]
[1646272335787,0.12508611,43806.0,43802.0,0.01102322]
[1646272336486,0.1249,43806.0,43802.0,0.01102322]
[1646272336689,0.21735198,43804.0,43802.0,0.01102322]
[1646272336887,0.12508611,43806.0,43802.0,0.01102322]
[1646272337288,0.40718181,43806.0,43802.0,0.01102322]
[1646272337790,0.2850957,43806.0,43802.0,0.01212322]
[1646272337987,0.28528181,43806.0,43802.0,0.01212322]
[1646272338989,0.2850957,43806.0,43802.0,0.01212322]
[1646272339190,0.28528181,43806.0,43802.0,0.01212322]
[1646272340051,0.2850957,43806.0,43802.0,0.01212322]
[1646272340450,0.28528181,43806.0,43802.0,0.01212322]
[1646272341255,0.2850957,43806.0,43802.0,0.01212322]
[1646272341454,0.003,43806.0,43802.0,0.01212322]
[1646272341658,0.00318611,43806.0,43802.0,0.01212322]
[1646272342452,0.003,43806.0,43802.0,0.01212322]
[1646272342850,0.00318611,43806.0,43802.0,0.01212322]
[1646272343053,0.23838111,43806.0,43802.0,0.01212322]
[1646272343295,0.44324684,43806.0,43802.0,0.01212322]
[1646272343795,0.44306073,43806.0,43802.0,0.01212322]
[1646272343991,0.15511124,43804.0,43802.0,0.01212322]
[1646272344192,0.44324684,43806.0,43804.0,0.21930627]
[1646272344492,0.235195,43805.0,43804.0,0.21930627]
[1646272346595,0.20786573,43806.0,43804.0,0.21930627]
[1646272348648,0.50023206,43805.0,43804.0,0.21930627]
[1646272348850,0.2820957,43805.0,43804.0,0.21930627]
[1646272349050,0.47278014,43805.0,43804.0,0.21930627]
[1646272349447,0.19068444,43805.0,43804.0,0.21930627]
[1646272349645,0.48996143,43806.0,43804.0,0.21930627]
[1646272350452,0.20786573,43806.0,43804.0,0.21930627]
[1646272350686,0.48996143,43806.0,43804.0,0.21930627]
[1646272350888,0.6777443,43806.0,43804.0,0.21930627]
[1646272351693,0.003,43806.0,43804.0,0.21930627]
[1646272352689,0.17753417,43805.0,43804.0,0.21930627]
[1646272358194,0.17643417,43805.0,43804.0,0.21930627]
[1646272358397,0.2850957,43806.0,43804.0,0.21930627]
[1646272358997,0.003,43806.0,43804.0,0.21930627]
[1646272359396,0.18226161,43805.0,43804.0,0.21930627]
[1646272360098,0.003,43806.0,43804.0,0.21930627]
[1646272361600,0.2352721,43805.0,43804.0,0.21930627]
[1646272362449,0.003,43806.0,43804.0,0.21930627]
[1646272362644,0.2850957,43806.0,43804.0,0.21930627]
[1646272364646,0.2890957,43806.0,43804.0,0.21930627]
[1646272365048,0.2890957,43806.0,43794.0,0.30848523]
[1646272365049,0.9,43804.0,43794.0,0.30848523]
[1646272365253,0.9,43804.0,43792.0,0.5320158]
[1646272365254,0.23524281,43800.0,43792.0,0.5320158]
[1646272365458,0.23524281,43798.0,43792.0,0.34203057]
[1646272365695,0.0457,43799.0,43792.0,0.34203057]
[1646272365696,0.23524281,43796.0,43792.0,0.34203057]
[1646272365900,0.23524281,43794.0,43792.0,0.34203057]
[1646272366096,0.0507,43793.0,43792.0,0.34203057]
[1646272366695,0.0507,43793.0,43792.0,0.02]
[1646272366895,0.33278748,43793.0,43792.0,0.02]
[1646272367296,0.43278748,43793.0,43792.0,0.02]
[1646272367699,0.73743273,43793.0,43792.0,0.02]
[1646272367997,0.42778748,43793.0,43792.0,0.02]
[1646272368198,0.7324978,43793.0,43792.0,0.02]
[1646272368398,0.45041032,43793.0,43792.0,0.02]
[1646272368697,0.45041032,43793.0,43792.0,0.01363411]
[1646272369298,1.14891032,43793.0,43792.0,0.01363411]
[1646272369543,1.38390798,43793.0,43792.0,0.01363411]
[1646272369747,1.38090798,43793.0,43792.0,0.01363411]
[1646272370147,1.15732032,43793.0,43792.0,0.00863411]
[1646272370344,1.19148712,43793.0,43792.0,0.00863411]
[1646272370545,1.42645478,43793.0,43792.0,0.00863411]
[1646272370745,1.18007712,43793.0,43792.0,0.00863411]
[1646272371144,1.41504661,43793.0,43792.0,0.00863411]
[1646272371746,0.8753668,43793.0,43792.0,0.00863411]
[1646272371945,1.02751811,43793.0,43792.0,0.00863411]
[1646272372147,0.33201811,43793.0,43792.0,0.00863411]
[1646272373400,0.33501811,43793.0,43792.0,0.00863411]
[1646272373600,0.64052947,43793.0,43792.0,0.00863411]
[1646272374200,0.33501811,43793.0,43792.0,0.00863411]
[1646272377273,0.33601811,43793.0,43792.0,0.00863411]
[1646272378486,0.64145801,43793.0,43792.0,0.00863411]
[1646272378672,0.33201811,43793.0,43792.0,0.00863411]
[1646272379273,1.33292605,43793.0,43792.0,0.00863411]
[1646272381296,1.33592605,43793.0,43792.0,0.00863411]
[1646272382300,1.03051811,43793.0,43792.0,0.00863411]
[1646272382900,1.33599045,43793.0,43792.0,0.00863411]
[1646272383299,1.33299045,43793.0,43792.0,0.00863411]
[1646272383501,1.33599045,43793.0,43792.0,0.00863411]
[1646272384301,1.33845687,43793.0,43792.0,0.00863411]
[1646272385343,1.34145687,43793.0,43792.0,0.00863411]
[1646272385546,1.03598453,43793.0,43792.0,0.00863411]
[1646272387248,1.02998453,43793.0,43792.0,0.00863411]
[1646272387448,1.33798715,43793.0,43792.0,0.00863411]
[1646272388695,1.33798715,43793.0,43792.0,0.00558362]
[1646272389698,0.9227,43792.0,43777.0,0.30800262]
[1646272389901,0.9227,43792.0,43776.0,0.2499]
[1646272389902,0.0227,43790.0,43776.0,0.2499]
[1646272390497,0.16044515,43786.0,43776.0,0.2499]
[1646272390696,0.21209093,43781.0,43776.0,0.2499]
[1646272390900,0.24540058,43780.0,43776.0,0.2499]
[1646272391098,0.24849771,43780.0,43776.0,0.2499]
[1646272391703,0.24849771,43780.0,43773.0,0.01141]
[1646272391946,0.30825748,43779.0,43773.0,0.01141]
[1646272392146,0.35395748,43779.0,43773.0,0.01141]
[1646272393245,0.56673807,43779.0,43773.0,0.01141]
[1646272393450,0.57173807,43779.0,43773.0,0.01141]
[1646272394246,0.35895748,43779.0,43773.0,0.01141]
[1646272394846,0.21718946,43776.0,43773.0,0.01141]
[1646272396596,0.38354315,43776.0,43773.0,0.01141]
[1646272396996,0.30825748,43775.0,43773.0,0.01141]
[1646272398098,0.30825748,43775.0,43772.0,0.02]
[1646272398694,0.30984927,43775.0,43772.0,0.02]
[1646272399298,0.00159179,43775.0,43772.0,0.02]
[1646272403710,0.26665947,43773.0,43772.0,0.02]
[1646272404106,0.00159179,43775.0,43772.0,0.02]
[1646272410704,0.00159179,43775.0,43772.0,0.20982582]
[1646272411611,0.00010474,43777.0,43776.0,0.37702]
[1646272411810,0.05,43788.0,43776.0,0.37702]
[1646272411811,0.05,43788.0,43778.0,0.0227]
[1646272412007,0.32862161,43798.0,43784.0,0.15]
[1646272412008,0.28167567,43798.0,43784.0,0.15]
[1646272412208,0.48076812,43800.0,43784.0,0.15]
[1646272412209,0.28167567,43800.0,43785.0,0.36652568]
[1646272412407,0.28167567,43800.0,43785.0,0.0582682]
[1646272412606,0.2107166,43797.0,43785.0,0.0582682]
[1646272413210,0.70613315,43801.0,43785.0,0.0582682]
[1646272413407,0.70613315,43801.0,43785.0,0.1153732]
[1646272414307,0.42384885,43801.0,43788.0,0.057104]
[1646272414548,0.11559137,43801.0,43789.0,0.0457]
[1646272414949,0.00010474,43797.0,43789.0,0.0457]
[1646272415749,0.17272642,43800.0,43789.0,0.0457]
[1646272416151,0.00021358,43795.0,43789.0,0.0457]
[1646272417054,0.21254342,43797.0,43789.0,0.0457]
[1646272417258,0.00019784,43794.0,43789.0,0.0457]
[1646272418054,0.26067915,43792.0,43789.0,0.0457]
[1646272418702,0.00019784,43794.0,43789.0,0.0457]
[1646272421619,0.21254342,43797.0,43794.0,0.00038728]
[1646272423454,0.21854342,43797.0,43794.0,0.00038728]
[1646272425457,0.22554342,43797.0,43794.0,0.00038728]
[1646272425910,0.21254342,43797.0,43794.0,0.00038728]
[1646272427413,0.21854342,43797.0,43794.0,0.00038728]
[1646272428014,0.59610441,43797.0,43794.0,0.00038728]
[1646272429215,0.59610441,43797.0,43796.0,0.00270077]
[1646272429461,0.60110441,43797.0,43796.0,0.00270077]
[1646272430358,0.59010441,43797.0,43796.0,0.00270077]
[1646272431459,0.59510441,43797.0,43796.0,0.00270077]
[1646272431859,0.59510441,43797.0,43796.0,0.00239197]
[1646272433322,0.59010441,43797.0,43796.0,0.00239197]
[1646272433521,0.59610441,43797.0,43796.0,0.00239197]
[1646272434321,0.59610441,43797.0,43794.0,0.00038728]
[1646272435020,0.59010441,43797.0,43794.0,0.00038728]
[1646272435622,0.59610441,43797.0,43794.0,0.00038728]
[1646272437456,0.59010441,43797.0,43794.0,0.00038728]
[1646272437856,0.58982949,43797.0,43794.0,0.00038728]
[1646272438659,0.28157201,43797.0,43796.0,0.00196177]
[1646272438959,0.58982949,43797.0,43796.0,0.00196177]
[1646272439557,0.52552598,43797.0,43796.0,0.00196177]
[1646272439763,0.2172685,43797.0,43796.0,0.00196177]
[1646272440815,0.2072685,43797.0,43796.0,0.00196177]
[1646272441015,0.51552598,43797.0,43796.0,0.00196177]
[1646272441621,9.52052598,43797.0,43796.0,0.00196177]
[1646272442222,9.2122685,43797.0,43796.0,0.00196177]
[1646272443017,9.2072685,43797.0,43796.0,0.00196177]
[1646272443823,9.3122685,43797.0,43796.0,0.00196177]
[1646272444022,9.3122685,43797.0,43783.0,0.01141]
[1646272444023,0.0227,43795.0,43783.0,0.01141]
[1646272444218,0.33095748,43795.0,43783.0,0.01141]
[1646272444458,0.37665748,43795.0,43783.0,0.01141]
[1646272444659,0.17119978,43787.0,43783.0,0.01141]
[1646272444858,0.21469096,43786.0,43783.0,0.01141]
[1646272445064,0.28519558,43785.0,43783.0,0.01141]
[1646272446958,0.21469096,43786.0,43783.0,0.01141]
[1646272447961,0.2830089,43785.0,43783.0,0.01141]
[1646272448219,0.34923589,43785.0,43783.0,0.01141]
[1646272448519,0.21469096,43786.0,43783.0,0.01141]
[1646272449121,0.00225201,43784.0,43783.0,0.01141]
[1646272451125,0.0695242,43789.0,43787.0,0.0013856]
[1646272451627,0.30825748,43788.0,43787.0,0.0013856]
[1646272451827,0.30825748,43791.0,43787.0,0.0013856]
[1646272452270,0.46871988,43794.0,43787.0,0.0013856]
[1646272452474,0.30825748,43794.0,43787.0,0.0013856]
[1646272452676,0.1816,43795.0,43787.0,0.0013856]
[1646272452877,0.23489779,43795.0,43787.0,0.0470856]
[1646272453472,0.20355739,43793.0,43787.0,0.0470856]
[1646272454774,0.28774195,43791.0,43787.0,0.0470856]
[1646272454974,0.20355739,43793.0,43787.0,0.0470856]
[1646272455821,0.19855739,43793.0,43787.0,0.0470856]
[1646272456021,0.41038603,43793.0,43787.0,0.0470856]
[1646272457123,0.41038603,43793.0,43787.0,0.0013856]
[1646272457927,0.19855739,43793.0,43787.0,0.0013856]
[1646272459323,0.19855739,43793.0,43787.0,0.0584916]
[1646272459572,0.45304943,43793.0,43787.0,0.0584916]
[1646272460273,0.19855739,43793.0,43787.0,0.0584916]
[1646272463712,0.47060158,43793.0,43787.0,0.0584916]
[1646272467961,0.19855739,43793.0,43788.0,0.01000752]
[1646272468165,0.19855739,43793.0,43788.0,0.01434703]
[1646272468966,9.1164,43797.0,43789.0,0.40002]
[1646272468967,0.00018589,43796.0,43789.0,0.40002]
[1646272469163,0.00018589,43796.0,43792.0,0.05709]
[1646272469364,0.00018589,43796.0,43793.0,0.40002]
[1646272469563,0.00018589,43796.0,43795.0,0.36501119]
[1646272469761,0.00018589,43796.0,43795.0,0.41071119]
[1646272469964,9.0,43797.0,43795.0,0.40002]
[1646272470461,9.0,43797.0,43795.0,0.41082808]
[1646272470713,9.0,43797.0,43795.0,0.40002]
[1646272471312,9.0,43797.0,43795.0,0.41180526]
[1646272471512,9.0,43797.0,43795.0,0.4117504]
[1646272473713,9.0,43797.0,43796.0,0.35699364]
[1646272473912,9.0,43797.0,43796.0,0.40269364]
[1646272475760,9.0,43797.0,43796.0,0.40869364]
[1646272477161,9.0014,43797.0,43796.0,0.40869364]
[1646272477562,9.0014,43797.0,43796.0,0.40269364]
[1646272478626,9.0014,43797.0,43796.0,0.40002]
[1646272479521,9.00112519,43797.0,43796.0,0.40002]
[1646272480122,9.00112519,43797.0,43796.0,0.35432]
[1646272480325,9.00112519,43797.0,43796.0,0.36840938]
[1646272480523,9.00112519,43797.0,43796.0,0.35432]
[1646272480724,9.00112519,43797.0,43796.0,0.36757595]
[1646272481230,8.49413228,43797.0,43796.0,0.42466695]
[1646272481425,8.49413228,43797.0,43796.0,0.411411]
[1646272481629,8.49413228,43797.0,43796.0,0.768811]
[1646272481825,8.49413228,43797.0,43796.0,0.846111]
[1646272482278,8.49413228,43797.0,43796.0,0.81152292]
[1646272482978,8.49413228,43797.0,43796.0,0.80752292]
[1646272483379,8.49413228,43797.0,43796.0,0.707111]
[1646272487824,8.49413228,43797.0,43796.0,1.01884824]
[1646272488425,8.49413228,43797.0,43796.0,1.71434824]
[1646272488630,7.51809271,43797.0,43796.0,3.17970097]
[1646272489032,6.83322471,43797.0,43796.0,3.17970097]
[1646272489460,6.49075871,43797.0,43796.0,3.17970097]
[1646272489666,6.49075871,43797.0,43796.0,3.18770097]
[1646272490064,6.14830771,43797.0,43796.0,3.18770097]
[1646272490263,6.14830771,43797.0,43796.0,2.49220097]
[1646272490666,6.14830771,43797.0,43796.0,3.18770097]
[1646272491464,6.14830771,43797.0,43796.0,3.17970097]
[1646272491668,6.14830771,43797.0,43796.0,3.20940097]
[1646272491864,6.14830771,43797.0,43796.0,3.40740097]
[1646272492066,6.14830771,43797.0,43796.0,2.68920097]
[1646272492963,6.14830771,43797.0,43796.0,2.49120097]
[1646272493632,6.14690771,43797.0,43796.0,2.48420097]
[1646272494030,6.14690771,43797.0,43796.0,1.62843323]
[1646272494235,6.14690771,43797.0,43796.0,1.57134223]
[1646272495834,6.14690771,43797.0,43796.0,1.32144223]
[1646272496134,6.13690771,43797.0,43796.0,1.32144223]
[1646272496739,6.13690771,43797.0,43796.0,0.75044223]
[1646272502718,6.36690771,43797.0,43796.0,0.75044223]
[1646272505870,6.36690771,43797.0,43796.0,0.68925205]
[1646272507073,6.36690771,43797.0,43796.0,0.68425205]
[1646272507774,6.36690771,43797.0,43796.0,0.48855205]
[1646272507973,6.36690771,43797.0,43796.0,0.28812982]
[1646272508219,6.36690771,43797.0,43795.0,0.35432]
[1646272508420,0.32302746,43796.0,43795.0,0.35432]
[1646272508621,0.49526351,43796.0,43795.0,0.35432]
[1646272508818,0.17223605,43796.0,43795.0,0.35432]
[1646272509219,0.17223605,43796.0,43794.0,0.00212612]
[1646272509420,0.17223605,43796.0,43795.0,0.354355]
[1646272509818,0.17223605,43796.0,43795.0,0.358355]
[1646272510619,0.17223605,43796.0,43795.0,0.004]
[1646272511019,0.17223605,43796.0,43794.0,0.00212612]
[1646272511220,6.03217855,43797.0,43795.0,0.354355]
[1646272511421,0.21710967,43795.0,43794.0,0.00212612]
[1646272511620,0.21710967,43795.0,43794.0,0.35648112]
[1646272511824,0.21710967,43795.0,43794.0,0.36048112]
[1646272513083,0.21710967,43795.0,43794.0,0.35648112]
[1646272513286,0.21710967,43795.0,43794.0,0.00212612]
[1646272515084,0.21710967,43795.0,43794.0,0.35648112]
[1646272515720,0.21710967,43795.0,43794.0,0.35948112]
[1646272517626,6.03236478,43797.0,43795.0,0.354355]
[1646272517826,6.03236478,43797.0,43795.0,0.411446]
[1646272518027,6.03217855,43797.0,43795.0,0.411446]
[1646272519876,6.03190374,43797.0,43795.0,0.411446]
[1646272520569,6.03190374,43797.0,43795.0,0.354355]
[1646272521571,6.03190374,43797.0,43795.0,0.468535]
[1646272521772,6.03190374,43797.0,43796.0,0.01253289]
[1646272521970,6.03190374,43797.0,43796.0,0.41258789]
[1646272522572,6.03190374,43797.0,43796.0,0.54758789]
[1646272523620,6.03190374,43797.0,43796.0,0.66175289]
[1646272523821,6.03190374,43797.0,43796.0,0.66575289]
[1646272524223,6.03190374,43797.0,43796.0,0.66740616]
[1646272525126,6.03190374,43797.0,43796.0,0.66340616]
[1646272525525,6.03190374,43797.0,43796.0,0.98825978]
[1646272525728,6.03190374,43797.0,43796.0,1.07972689]
[1646272525927,6.03190374,43797.0,43796.0,1.26975249]
[1646272526130,6.03190374,43797.0,43796.0,1.07972689]
[1646272526828,5.39824538,43797.0,43796.0,1.07972689]
[1646272527088,5.39824538,43797.0,43796.0,1.07572689]
[1646272527489,5.39824538,43797.0,43796.0,0.75087327]
[1646272527993,5.39824538,43797.0,43796.0,0.945834]
[1646272529491,5.39824538,43797.0,43796.0,0.94418073]
[1646272529690,5.39824538,43797.0,43796.0,0.93918073]
[1646272529891,5.39824538,43797.0,43796.0,0.94418073]
[1646272531319,5.39824538,43797.0,43796.0,0.80918073]
[1646272531523,5.39824538,43797.0,43796.0,0.79544254]
[1646272531721,5.39824538,43797.0,43796.0,0.60548181]
[1646272531722,5.6515394,43797.0,43796.0,0.60548181]
[1646272531920,5.6515394,43797.0,43796.0,0.55978181]
[1646272532126,5.6515394,43797.0,43796.0,0.359355]
[1646272532320,5.39824538,43797.0,43796.0,0.359355]
[1646272532522,5.39824538,43797.0,43796.0,0.494355]
[1646272533725,5.39824538,43797.0,43796.0,0.499355]
[1646272534122,5.39824538,43797.0,43796.0,0.494355]
[1646272537170,5.39824538,43797.0,43796.0,0.489355]
[1646272537869,5.39824538,43797.0,43796.0,0.495355]
[1646272538070,5.39824538,43797.0,43796.0,0.68531573]
[1646272538330,5.39824538,43797.0,43796.0,0.50648181]
[1646272538527,5.39824538,43797.0,43796.0,0.69645573]
[1646272539329,5.39824538,43797.0,43796.0,0.50648181]
[1646272539528,5.39824538,43797.0,43796.0,0.69045573]
[1646272539731,5.39824538,43797.0,43796.0,0.50648181]
[1646272539928,5.39824538,43797.0,43796.0,0.69645573]
[1646272540130,5.39824538,43797.0,43796.0,0.50648181]
[1646272540730,5.39824538,43797.0,43796.0,0.50148181]
[1646272541329,4.89127541,43797.0,43796.0,0.49548181]
[1646272541828,4.89127541,43797.0,43796.0,0.50348181]
[1646272542469,4.89066709,43797.0,43796.0,0.50348181]
[1646272543067,4.89066709,43797.0,43796.0,0.49548181]
[1646272543472,4.89066709,43797.0,43796.0,0.68545573]
[1646272543869,4.89066709,43797.0,43796.0,0.69145573]
[1646272544070,4.89066709,43797.0,43796.0,0.50148181]
[1646272545270,4.89066709,43797.0,43796.0,0.45578181]
[1646272545724,4.89066709,43797.0,43796.0,0.44978181]
[1646272546131,5.1370673,43797.0,43796.0,0.44978181]
[1646272546524,4.89066709,43797.0,43796.0,0.44978181]
[1646272549570,4.89066709,43797.0,43796.0,0.39978181]
[1646272551869,4.89066709,43797.0,43796.0,0.40478181]
[1646272552270,4.89066709,43797.0,43796.0,0.55048181]
[1646272552472,4.89066709,43797.0,43796.0,0.74045573]
[1646272553322,4.89066709,43797.0,43796.0,0.73545573]
[1646272553522,4.89066709,43797.0,43796.0,0.79253502]
[1646272553725,4.89066709,43797.0,43796.0,0.73545573]
[1646272553926,4.89066709,43797.0,43796.0,0.74480192]
[1646272554322,4.89066709,43797.0,43796.0,0.554828]
[1646272555124,4.89066709,43797.0,43796.0,0.546828]
[1646272556024,4.89066709,43797.0,43796.0,0.554828]
[1646272556326,4.89066709,43797.0,43796.0,0.64481635]
[1646272556527,4.89066709,43797.0,43796.0,0.454828]
[1646272557580,4.89066709,43797.0,43796.0,0.446828]
[1646272558182,4.89066709,43797.0,43796.0,0.63681635]
[1646272558883,4.89066709,43797.0,43796.0,0.79390235]
[1646272559085,4.89066709,43797.0,43796.0,0.603914]
[1646272559884,4.89066709,43797.0,43796.0,1.21905061]
[1646272560083,4.25703323,43797.0,43796.0,0.80407982]
[1646272560286,4.25703323,43797.0,43796.0,1.06609152]
[1646272560726,4.25703323,43797.0,43796.0,0.78135279]
[1646272561026,4.25703323,43797.0,43796.0,1.06632445]
[1646272561428,4.25703323,43797.0,43796.0,1.02297286]
[1646272561632,4.25703323,43797.0,43796.0,1.06631987]
[1646272563728,4.25703323,43797.0,43796.0,1.06634463]
[1646272564029,4.25703323,43797.0,43796.0,1.07434463]
[1646272564886,4.25703323,43797.0,43796.0,1.72763032]
[1646272565086,3.91461223,43797.0,43796.0,1.52549612]
[1646272565284,3.91461223,43797.0,43796.0,2.02549612]
[1646272565682,3.57219923,43797.0,43796.0,2.72099612]
[1646272565882,3.57219923,43797.0,43796.0,2.72699612]
[1646272566283,3.57219923,43797.0,43796.0,2.73466561]
[1646272566284,2.95374507,43797.0,43796.0,2.73466561]
[1646272566485,2.95374507,43797.0,43796.0,3.35283022]
[1646272566688,2.95374507,43797.0,43796.0,3.32999907]
[1646272566891,2.95374507,43797.0,43796.0,3.53276567]
[1646272567487,2.61132807,43797.0,43796.0,3.53276567]
[1646272567684,2.61132807,43797.0,43796.0,3.51876567]
[1646272567885,2.26892407,43797.0,43796.0,3.51876567]
[1646272568087,2.26892407,43797.0,43796.0,3.54159567]
[1646272568321,2.26892407,43797.0,43796.0,3.65566567]
[1646272568517,1.92650907,43797.0,43796.0,3.65566567]
[1646272568921,1.92650907,43797.0,43796.0,3.9880321]
[1646272569118,1.92650907,43797.0,43796.0,3.65566567]
[1646272569317,1.92650907,43797.0,43796.0,3.51876567]
[1646272569522,1.92650907,43797.0,43796.0,3.85113205]
[1646272569923,1.92650907,43797.0,43796.0,3.70913205]
[1646272570121,1.92650907,43797.0,43796.0,2.31300106]
[1646272570322,1.92650907,43797.0,43796.0,2.58988988]
[1646272571119,1.92650907,43797.0,43796.0,2.38710037]
[1646272571320,1.41962721,43797.0,43796.0,2.38710037]
[1646272571962,1.41962721,43797.0,43796.0,2.10221155]
[1646272573469,1.41962721,43797.0,43796.0,1.60221155]
[1646272573669,1.41962721,43797.0,43796.0,1.03121155]
[1646272574870,1.41962721,43797.0,43796.0,0.78131155]
[1646272576323,1.41962721,43797.0,43796.0,1.01870174]
[1646272576725,1.41962721,43797.0,43796.0,0.84126295]
[1646272576925,1.41962721,43797.0,43796.0,0.78131155]
[1646272577124,1.41962721,43797.0,43796.0,0.60387276]
[1646272577926,1.41962721,43797.0,43796.0,0.61287276]
[1646272578328,1.41962721,43797.0,43796.0,0.85026034]
[1646272580184,0.78601264,43797.0,43796.0,0.85026034]
[1646272580990,0.78601264,43797.0,43796.0,0.8502587]
[1646272581187,0.78601264,43797.0,43796.0,0.8412587]
[1646272581389,0.78601264,43797.0,43796.0,0.60387276]
[1646272581986,0.78601264,43797.0,43796.0,0.61187276]
[1646272583220,0.78601264,43797.0,43796.0,0.60387276]
[1646272584023,0.78601264,43797.0,43796.0,0.61187276]
[1646272584325,0.78601264,43797.0,43796.0,0.84925322]
[1646272585224,0.78601264,43797.0,43796.0,0.84125334]
[1646272585625,0.78601264,43797.0,43796.0,0.60387276]
[1646272585829,0.00018516,43799.0,43796.0,0.96522448]
[1646272586035,0.05,43810.0,43799.0,0.95]
[1646272586231,0.4828,43813.0,43808.0,0.05706]
[1646272586428,0.4835,43816.0,43809.0,0.45709729]
[1646272586627,0.1999,43819.0,43811.0,0.35434]
[1646272586827,0.01,43819.0,43815.0,0.135]
[1646272587072,0.01,43819.0,43818.0,0.48934]
[1646272587374,0.01,43819.0,43818.0,0.53504]
[1646272587580,0.01,43819.0,43818.0,0.50043473]
[1646272587877,0.22830249,43819.0,43818.0,0.0487]
[1646272588975,0.01,43819.0,43818.0,0.0487]
[1646272589177,0.01,43819.0,43818.0,0.40304]
[1646272589376,0.01,43819.0,43818.0,0.40004]
[1646272589976,0.01,43819.0,43818.0,0.40304]
[1646272590581,0.01,43819.0,43818.0,0.50304]
[1646272591826,0.01,43819.0,43818.0,0.50004]
[1646272592626,0.24,43819.0,43818.0,0.50004]
[1646272593231,0.24,43819.0,43818.0,1.03967508]
[1646272593431,0.24,43819.0,43818.0,0.90467508]
[1646272593629,0.24,43819.0,43818.0,1.21711387]
[1646272594029,0.24,43819.0,43818.0,1.22111387]
[1646272594328,0.24,43819.0,43818.0,1.08768614]
[1646272594576,0.24,43819.0,43818.0,1.22268614]
[1646272595177,0.24,43819.0,43818.0,0.87510706]
[1646272596179,0.24,43819.0,43818.0,0.74010706]
[1646272596378,0.24,43819.0,43818.0,0.87510706]
[1646272596578,0.24,43819.0,43818.0,1.22268614]
[1646272596778,0.24,43819.0,43818.0,0.87510706]
[1646272597179,0.24,43819.0,43818.0,1.22268614]
[1646272597381,0.24,43819.0,43818.0,1.21868614]
[1646272597983,0.24,43819.0,43818.0,0.74110706]
[1646272598229,0.24,43819.0,43818.0,0.87610706]
[1646272598624,0.24,43819.0,43818.0,0.73953479]
[1646272598823,0.24,43819.0,43818.0,0.87453479]
[1646272600026,0.24,43819.0,43818.0,0.87953479]
[1646272600425,0.24,43819.0,43818.0,0.702096]
[1646272600630,0.24,43819.0,43818.0,0.692096]
[1646272601228,0.14173,43828.0,43825.0,0.2466239]
[1646272601433,0.01,43829.0,43827.0,0.135]
[1646272601632,0.01,43829.0,43828.0,0.35434]
[1646272601970,0.01,43829.0,43828.0,0.20020338]
[1646272603975,0.01,43829.0,43828.0,0.20320338]
[1646272605476,0.01,43829.0,43828.0,0.20020338]
[1646272607240,0.01,43829.0,43825.0,0.2466239]
[1646272608041,0.25995138,43826.0,43825.0,0.2466239]
[1646272608244,0.49019868,43826.0,43825.0,0.7357469]
[1646272608441,0.49019868,43826.0,43825.0,0.6007469]
[1646272608641,0.1608164,43826.0,43825.0,0.6007469]
[1646272609772,0.38126816,43826.0,43825.0,0.6007469]
[1646272611874,0.61126816,43826.0,43825.0,0.6007469]
[1646272612072,0.61126816,43826.0,43825.0,0.6047469]
[1646272613923,0.3908164,43826.0,43825.0,0.6047469]
[1646272615021,0.63034264,43826.0,43825.0,0.6047469]
[1646272615422,0.3908164,43826.0,43825.0,0.6007469]
[1646272616624,0.23,43826.0,43825.0,0.6007469]
[1646272618068,0.23,43826.0,43825.0,0.6047469]
[1646272619871,0.23,43826.0,43825.0,0.6007469]
[1646272622028,0.23,43826.0,43825.0,0.6047469]
[1646272623829,0.23,43826.0,43825.0,0.6007469]
[1646272625580,0.23,43826.0,43825.0,0.6464469]
[1646272625980,0.23,43826.0,43825.0,0.6504469]
[1646272626182,0.23,43826.0,43825.0,0.7854469]
[1646272626384,0.23,43826.0,43825.0,0.8854469]
[1646272627378,0.23,43826.0,43825.0,1.06280879]
[1646272627979,0.23,43826.0,43825.0,0.92380879]
[1646272628262,0.23,43826.0,43825.0,0.7464469]
[1646272628761,0.23,43826.0,43825.0,0.92380879]
[1646272628960,0.23,43826.0,43825.0,0.8814469]
[1646272629170,0.23,43826.0,43825.0,1.05880879]
[1646272629363,0.23,43826.0,43825.0,0.8814469]
[1646272629560,0.23,43826.0,43825.0,1.05880879]
[1646272629760,0.23,43826.0,43825.0,0.8814469]
[1646272629962,0.23,43826.0,43825.0,1.05880879]
[1646272630162,0.23,43826.0,43825.0,0.8864469]
[1646272630662,0.23,43826.0,43825.0,0.9434969]
[1646272631065,0.23,43826.0,43825.0,1.12085879]
[1646272631262,0.23,43826.0,43825.0,0.8864469]
[1646272631463,0.23,43826.0,43825.0,1.06380879]
[1646272631666,0.23,43826.0,43825.0,0.8864469]
[1646272631865,0.23,43826.0,43825.0,1.06380879]
[1646272632077,0.23,43826.0,43825.0,0.9434949]